Cogmind - Beta 16.1 @@@ ROGUE MODE // 2026.03.28 @ 21:28:17 Player: Strawberry Result: Destroyed by Y-45 Defender with Beam Rifle Performance ------------- Evolutions (2) 1000 Regions Visited (5) 1000 Robots Destroyed (30) 150 Value Destroyed (1048) 1048 Prototype IDs (3) 60 Alien Tech Used (0) 0 Bonus (0) 0 TOTAL SCORE: 3258 Bonus ------- None Cogmind --------- Core Integrity 0/550 Matter 275/300 Energy 75/100 System Corruption 0% Temperature Cool (9) Movement Walking (112) Location -8/Storage Parts ------- > --- POWER (1) -------- (None) > --- PROPULSION (4) --- Aluminum Leg VSS Leg Improved Carbon-fiber Leg Improved Carbon-fiber Leg > --- UTILITY (4) ------ Improved Cooling System High-capacity Storage Unit Advanced Visual Processing Unit Hacking Suite > --- WEAPON (2) ------- Pulse Rifle Advanced Beam Cannon > --- INVENTORY (20) --- Light Ion Engine Heavy Ion Engine Aluminum Leg Hover Unit Improved Hover Unit Airjet Large Storage Unit Large Storage Unit Targeting Computer Improved Targeting Computer Hacking Suite Field Recycling Unit (0) Beam Rifle Pulse Rifle Light Assault Rifle Improved Datajack Mining Claw Mining Claw Peak State ------------ > --- POWER ------------ Improved Deuterium Engine > --- PROPULSION ------- Improved Carbon-fiber Leg Improved Carbon-fiber Leg Improved Carbon-fiber Leg Improved Carbon-fiber Leg > --- UTILITY ---------- Improved Heat Sink Improved Cooling System High-capacity Storage Unit Advanced Visual Processing Unit > --- WEAPON ----------- Beam Rifle Advanced Beam Cannon > --- INVENTORY -------- Light Ion Engine Heavy Ion Engine Hover Unit Improved Hover Unit Airjet Small Storage Unit Large Storage Unit Large Storage Unit Improved Terrain Scan Processor Targeting Computer Improved Targeting Computer Field Recycling Unit Pulse Rifle Light Assault Rifle Rocket Launcher Mini Grenade Launcher Mini Grenade Launcher Improved Datajack Mining Claw Mining Claw [Rating: 39] Favorites ----------- Power Improved Ion Engine Engine Improved Ion Engine Propulsion Aluminum Leg Treads Light Treads Leg Aluminum Leg Utility ECM Suite Device ECM Suite Storage Large Storage Unit Processor Advanced Visual Processing Unit Hackware Hacking Suite Protection Hardened Light Armor Plating Weapon Small Laser Energy Gun Small Laser Energy Cannon Advanced Beam Cannon Ballistic Gun Heavy Assault Rifle Slashing Weapon Mining Claw Build | -11 -10 -10 -9 -8 -8 ------- Run | Yrd Mat Min Mat Mat Sto Slots Evolved 4 | . . . 2 2 . Power . | . . . . . . Propulsion 2 | . . . 2 . . Utility 2 | . . . . 2 . Weapon . | . . . . . . Parts Attached 44 | 6 2 1 7 24 4 Power 5 | 1 . 1 1 2 . Engine 5 | 1 . 1 1 2 . Core . | . . . . . . Reactor . | . . . . . . Propulsion 17 | 2 . . 4 10 1 Treads 4 | . . . 4 . . Leg 13 | 2 . . . 10 1 Wheel . | . . . . . . Hover . | . . . . . . Flight . | . . . . . . Utility 12 | 1 2 . . 7 2 Device 5 | . 1 . . 4 . Storage 3 | 1 1 . . 1 . Processor 2 | . . . . 1 1 Hackware 1 | . . . . . 1 Protection 1 | . . . . 1 . Artifact . | . . . . . . Weapon 10 | 2 . . 2 5 1 Energy Gun 5 | 1 . . 1 3 . Energy Cannon 1 | . . . . 1 . Ballistic Gun 2 | 1 . . 1 . . Ballistic Cannon . | . . . . . . Launcher . | . . . . . . Special Weapon . | . . . . . . Impact Weapon . | . . . . . . Slashing Weapon 2 | . . . . 1 1 Piercing Weapon . | . . . . . . Special Melee Weapon . | . . . . . . Unidentified Prototypes 3 | . . . . 3 . Parts Lost 15 | . . 1 2 11 1 Power 3 | . . 1 . 1 1 Propulsion 6 | . . . 2 4 . Utility 4 | . . . . 4 . Weapon 2 | . . . . 2 . Highest Loss Streak 5 | . . 1 1 5 1 To Critical Strikes . | . . . . . . Average Backups 13 | 1 7 10 13 17 19 Power 1 | . 1 1 1 1 2 Propulsion 4 | . 4 6 6 3 4 Utility 3 | . . 2 3 5 7 Weapon 3 | . 1 1 2 5 5 Tool/Special . | . . . . . . Unused Backups 16 | . . . 2 4 10 Power 1 | . . . . . 1 Propulsion 5 | . . . 2 . 3 Utility 4 | . . . . . 4 Weapon 5 | . . . . 4 1 Tool/Special 1 | . . . . . 1 Average Slot Usage (%) 90 | . 93 98 83 87 95 Engine 10 | . 14 12 11 9 9 Treads 5 | . . . 12 5 . Leg 23 | . 28 28 16 23 32 Device 13 | . 7 14 11 15 9 Storage 11 | . 14 14 11 9 9 Processor 1 | . . . . 1 16 Protection 1 | . . . . 4 . Energy Gun 11 | . 14 14 11 9 14 Energy Cannon 1 | . . . . 3 . Ballistic Gun 9 | . 14 14 11 4 . Peak Build Rating 39 | 6 7 9 14 39 36 Average Rating 16 | 4 6 8 11 24 34 On Entrance 11 | . 6 7 9 14 32 Avg Prop Armor Cover (%) 5 | . . . 5 7 . Naked Turns . | . . . . . . Heaviest Build 70 | 10 27 27 35 70 58 Greatest Support 80 | 20 20 20 80 80 58 Greatest Overweight (x) 5 | 2 1 1 1 5 1 Average Overweight (x) . | . . 1 . 1 . Largest Inventory Capacity 20 | 8 15 15 15 20 20 Average Capacity 16 | 7 11 15 15 19 20 Most Carried 20 | 4 9 13 15 20 20 Average Carried 14 | 2 7 10 14 18 18 Final Capacity 20 | 8 15 15 15 20 20 Final Carried 20 | 4 9 12 14 20 18 Class Distribution -------------------- 64% | Mutant 35% | Scavenger-Mutant Dominant Class ---------------- Mutant | -10/Materials Mutant | -10/Mines Mutant | -9/Materials Scavenger-Mutant | -8/Materials Scavenger-Mutant | -8/Storage Resources | -11 -10 -10 -9 -8 -8 ----------- Run | Yrd Mat Min Mat Mat Sto Matter Collected 727 | 221 39 22 150 275 20 Remotely 98 | . . . . 98 . Salvage Created 1334 | . . 39 401 810 84 Parts 66 | . . 5 27 33 1 Haulers Intercepted . | . . . . . . Recyclers Shooed . | . . . . . . Parts Field Recycled . | . . . . . . Retrieved Matter . | . . . . . . Parts Self-Destructed . | . . . . . . Prevented . | . . . . . . Parts Restored . | . . . . . . Kills | -11 -10 -10 -9 -8 -8 ------- Run | Yrd Mat Min Mat Mat Sto Combat Hostiles Destroyed 24 | . . 2 9 11 2 Guns 19 | . . 2 9 6 2 Cannons 5 | . . . . 5 . Classes Destroyed 8 | . . 1 4 3 . Builder 1 | . . . . 1 . Recycler 3 | . . . 1 2 . Watcher 2 | . . . 1 1 . Swarmer 5 | . . 2 3 . . Grunt 7 | . . . 3 2 2 Duelist 1 | . . . . 1 . Sentry 5 | . . . 3 2 . Specialist 6 | . . . . 6 . Best Kill Streak 3 | . . 2 3 3 1 Combat Bots Only 3 | . . 2 3 2 1 Max Kills in Single Turn 1 | . . 1 1 1 1 Gunslinging . | . . . . . . Exploded . | . . . . . . Melee . | . . . . . . Uniques/NPCs Destroyed . | . . . . . . Combat | -11 -10 -10 -9 -8 -8 -------- Run | Yrd Mat Min Mat Mat Sto Hostile Shots Fired 258 | . . 16 59 167 16 Missed 86 | . . 4 18 57 7 Hits 172 | . . 12 41 110 9 Melee 7 | . . . . 7 . Projectile 165 | . . 12 41 103 9 Critical Strikes 8 | . . . 2 6 . Damage Taken 2809 | . . 94 531 2047 137 Core 666 | . . 8 98 545 15 Absorbed by Shields . | . . . . . . Core Remaining (%) 90 | 100 . 96 75 . . Volleys Fired 111 | . . 7 33 62 9 Largest 2 | . . 2 2 2 2 Hottest 131 | . . 60 79 126 131 Shots Fired 200 | . . 14 65 103 18 Gun 173 | . . 14 65 78 16 Cannon 27 | . . . . 25 2 Launcher . | . . . . . . Special . | . . . . . . Kinetic 55 | . . 7 33 15 . Thermal 145 | . . 7 32 88 18 Explosive . | . . . . . . Electromagnetic . | . . . . . . Robot Hit Streak 21 | . . 2 13 11 21 Robot Miss Streak 5 | . . 5 3 2 1 Penetration Max . | . . . . . . Secondary Targets 1 | . . 1 . . . Max Gunslinging Chain 1 | . . 1 . . . Shots Hit Robots 145 | . . 5 44 79 17 Core Hits 56 | . . 3 18 30 5 Critical Kills . | . . . . . . Critical Parts Destroyed . | . . . . . . Critical Strikes 8 | . . . . 5 3 Burn 8 | . . . . 5 3 Melee Attacks 9 | . . . . 4 5 Impact . | . . . . . . Slashing 9 | . . . . 4 5 Piercing . | . . . . . . Sneak Attacks 1 | . . . . 1 . Combat Hostiles . | . . . . . . Follow-up Attacks . | . . . . . . Damage Inflicted 2371 | . . 65 555 1451 300 Guns 1859 | . . 65 555 979 260 Cannons 454 | . . . . 414 40 Explosions . | . . . . . . Melee 50 | . . . . 50 . Ramming 8 | . . . . 8 . Kinetic 485 | . . 29 313 143 . Thermal 1828 | . . 36 242 1250 300 Explosive . | . . . . . . Electromagnetic . | . . . . . . Impact . | . . . . . . Slashing 50 | . . . . 50 . Piercing . | . . . . . . Highest Corruption . | . . . . . . Average Corruption . | . . . . . . Corruption Purged . | . . . . . . Corruption Blocked . | . . . . . . Overload Shots . | . . . . . . Overflow Damage 12 | . . . . 12 . Projectiles 12 | . . . . 12 . Explosions . | . . . . . . Melee . | . . . . . . Knockbacks . | . . . . . . Impact . | . . . . . . Kinetic . | . . . . . . Secondary . | . . . . . . Self-Inflicted Damage . | . . . . . . Shots . | . . . . . . Rammed 1 | . . . . 1 . Targets Rammed 2 | . . . . 2 . Kicked 1 | . . . . 1 . Crushed . | . . . . . . Highest Temperature 294 | . . 40 55 294 . Average Temperature 59 | . . 22 21 83 . Received Heat Transfer 753 | . . . 177 513 63 Effects 1 | . . . . 1 . Interference 1 | . . . . 1 . Siege Activations . | . . . . . . Martial Activations . | . . . . . . Shielding Activations . | . . . . . . Robots Disrupted . | . . . . . . Combat Hostiles . | . . . . . . Robots Corrupted . | . . . . . . Combat Hostiles . | . . . . . . Parts Fried . | . . . . . . Impact Corruptions . | . . . . . . Robots Melted . | . . . . . . Combat Hostiles . | . . . . . . Parts Melted 14 | . . 1 1 11 1 Heat Transferred 4570 | . . 75 573 3071 851 Parts Sabotaged . | . . . . . . Parts Stolen . | . . . . . . Parts Stripped . | . . . . . . Power Chain Reactions . | . . . . . . Alert | -11 -10 -10 -9 -8 -8 ------- Run | Yrd Mat Min Mat Mat Sto Maximum Alert Level . | . . . . . . Low Security (%) 100 | 100 100 100 100 100 100 Level 1 . | . . . . . . Level 2 . | . . . . . . Level 3 . | . . . . . . Level 4 . | . . . . . . Level 5 . | . . . . . . High Security . | . . . . . . Max Security . | . . . . . . Peak Influence 90 | . 2 30 90 86 48 Initial 28 | . . . . 15 28 Average 14 | . . 2 26 16 32 Influence Increases 668 | . 2 40 243 342 41 Destroy 0b10 Robot/C 480 | . . 40 180 220 40 Destroy 0b10 Robot/NC 30 | . . . 10 20 . Destroy Leader 114 | . . . 52 62 . Successful Hack 8 | . 2 . . 6 . Disable Machine 15 | . . . . 15 . Destroy Structure 6 | . . . 1 4 1 Lose Combat Pursuer 15 | . . . . 15 . Influence Decreases 659 | . 2 40 205 312 100 Entered New Map 63 | . . . . 23 40 Time Decay 510 | . 2 30 205 223 50 Lost Part 84 | . . 10 . 64 10 Lost Ally 2 | . . . . 2 . Squads Dispatched 4 | . . . 1 3 . Investigation . | . . . . . . Extermination . | . . . . . . Reinforcement 4 | . . . 1 3 . Assault . | . . . . . . Garrison . | . . . . . . Intercept . | . . . . . . Searches Triggered . | . . . . . . Construction Impeded . | . . . . . . Haulers Reinforced . | . . . . . . Active Scanning Responses . | . . . . . . Cargo Convoy Interrupts . | . . . . . . Stealth | -11 -10 -10 -9 -8 -8 --------- Run | Yrd Mat Min Mat Mat Sto Distress Signals 8 | . . . 1 5 2 Communications Jammed . | . . . . . . Distress Signals . | . . . . . . Times Spotted 57 | . 2 4 14 33 4 Peak Tracking Total 4 | . 2 3 4 4 2 Tactical Retreats 5 | . . 1 2 2 . ECM-based Alert Blocks 9 | . . 2 5 2 . Traps | -11 -10 -10 -9 -8 -8 ------- Run | Yrd Mat Min Mat Mat Sto Traps Triggered . | . . . . . . Indirectly . | . . . . . . Trap Hack Attempts . | . . . . . . Triggered . | . . . . . . Disarmed . | . . . . . . Reprogrammed . | . . . . . . Reused . | . . . . . . Traps Extracted . | . . . . . . Installed . | . . . . . . Triggered . | . . . . . . Machines | -11 -10 -10 -9 -8 -8 ---------- Run | Yrd Mat Min Mat Mat Sto Machines Disabled 1 | . . . . 1 . Max in Single Turn 1 | . . . . 1 . Machines Repaired . | . . . . . . Machines Dismantled . | . . . . . . Machines Sabotaged . | . . . . . . Overloaded Fab Kills . | . . . . . . Hacking | -11 -10 -10 -9 -8 -8 --------- Run | Yrd Mat Min Mat Mat Sto Machines Accessed 11 | . 4 1 1 4 1 Terminals 6 | . 3 . . 3 . Fabricators . | . . . . . . Repair Stations 1 | . . . . . 1 Recycling Units 2 | . 1 . 1 . . Scanalyzers 1 | . . . . 1 . Garrison Access . | . . . . . . Total Hacks 15 | . 5 1 2 6 1 Successful 7 | . 2 1 2 1 1 Failed 8 | . 3 . . 5 . Catastrophic 3 | . . . . 3 . Database Lockouts . | . . . . . . Manual 7 | . 2 . . 5 . Terminals 9 | . 4 . . 5 . Fabricators . | . . . . . . Repair Stations 1 | . . . . . 1 Recycling Units 3 | . 1 . 2 . . Scanalyzers 1 | . . . . 1 . Garrison Access . | . . . . . . Terminal Hacks 4 | . 2 1 . 1 . Record 2 | . 2 . . . . Open Door 1 | . . 1 . . . Terminal Index 1 | . . . . 1 . Fabricator Hacks . | . . . . . . Repair Station Hacks 1 | . . . . . 1 Scan Component 1 | . . . . . 1 Recycling Unit Hacks 2 | . . . 2 . . Report Inventory 1 | . . . 1 . . Retrieve Components 1 | . . . 1 . . Scanalyzer . | . . . . . . Garrison Access Hacks . | . . . . . . Unauthorized Hacks . | . . . . . . Terminals . | . . . . . . Fabricators . | . . . . . . Repair Stations . | . . . . . . Recycling Units . | . . . . . . Scanalyzers . | . . . . . . Garrison Access . | . . . . . . Data Cores Recovered . | . . . . . . Used . | . . . . . . Hacking Detections 9 | . 4 . . 4 1 Full Trace Events . | . . . . . . Feedback Events . | . . . . . . Feedback Blocked . | . . . . . . Robot Schematics Acquired . | . . . . . . Robots Built . | . . . . . . Authchips . | . . . . . . Time . | . . . . . . Total Robot Build Rating . | . . . . . . Part Schematics Acquired . | . . . . . . Parts Built . | . . . . . . Authchips . | . . . . . . Time . | . . . . . . Total Part Build Rating . | . . . . . . Part Studies Acquired . | . . . . . . Parts Repaired . | . . . . . . Time . | . . . . . . Parts Recycled . | . . . . . . Recycled Matter . | . . . . . . Retrieved Matter . | . . . . . . Retrieved Components 3 | . . . 3 . . Parts Scanalyzed . | . . . . . . Part Schematics Acquired . | . . . . . . Parts Damaged . | . . . . . . Bothacking | -11 -10 -10 -9 -8 -8 ------------ Run | Yrd Mat Min Mat Mat Sto Used RIF Installer . | . . . . . . Robots Hacked . | . . . . . . Non-combat . | . . . . . . Combat . | . . . . . . Robot Hacks Applied . | . . . . . . Relay Couplers Released . | . . . . . . Fabnet Peak Effective % . | . . . . . . Robots Rewired . | . . . . . . Allies Hacked . | . . . . . . Hacks Repelled . | . . . . . . Allies | -11 -10 -10 -9 -8 -8 -------- Run | Yrd Mat Min Mat Mat Sto Total Allies . | . . . . . . Largest Group . | . . . . . . Highest-Rated Group . | . . . . . . Highest-Rated Ally . | . . . . . . Total Orders 1 | . . . . 1 . EXPLORE 1 | . . . . 1 . Ally Attacks . | . . . . . . Total Damage . | . . . . . . Kills . | . . . . . . Allies Corrupted . | . . . . . . Allies Melted . | . . . . . . Intel | -11 -10 -10 -9 -8 -8 ------- Run | Yrd Mat Min Mat Mat Sto Active Infowar (turns) 1963 | . 137 511 464 745 106 Optics 272 | . . . . 166 106 ECM 1691 | . 137 511 464 579 . Robot Analysis Total . | . . . . . . Derelict Logs Recovered 1 | . . 1 . . . Drone Launches 16 | . . . . 16 . Drone Recoveries . | . . . . . . Exploration | -11 -10 -10 -9 -8 -8 ------------- Run | Yrd Mat Min Mat Mat Sto Turns Passed 2718 | 63 224 607 641 1077 106 Spaces Moved 1188 | 45 149 303 249 402 40 Core 11 | 11 . . . . . Treads 165 | . . . 89 76 . Legs 1012 | 34 149 303 160 326 40 Wheels . | . . . . . . Hover . | . . . . . . Flight . | . . . . . . Fastest Speed 50 | 50 120 190 160 120 112 Average Speed 180 | 112 145 190 179 198 139 Slowest Speed 470 | 150 190 190 190 470 186 Overloaded Moves . | . . . . . . Propulsion Burnouts . | . . . . . . Robots Hopped . | . . . . . . Potential Cave-ins . | . . . . . . Cave-ins Triggered . | . . . . . . Exploration Rate (%) 27 | 3 27 56 21 38 17 Regions Visited 5 Branch Regions 2 Pre-discovered Areas . | . . . . . . Known Exits Taken 1 | . . . 1 . . Unknown Exits Taken 4 | 1 1 1 . 1 . Scrap Searched 1 | . . 1 . . . Spaces Dug 3 | . . . . 2 1 Terrain Destroyed 3 | . . . . 2 1 Melee 3 | . . . . 2 1 Projectile . | . . . . . . AOE . | . . . . . . Terrain Rammed . | . . . . . . Walls Destroyed . | . . . . . . Machines Disabled . | . . . . . . Actions | -11 -10 -10 -9 -8 -8 --------- Run | Yrd Mat Min Mat Mat Sto Total 1545 | 54 156 322 383 570 60 Wait 136 | . . 9 84 42 1 Move 1183 | 44 148 302 248 401 40 Hop . | . . . . . . Pick Up 39 | 4 5 3 7 20 . Fast Attach 17 | 6 1 . . 9 1 Attach 15 | . . 1 4 9 1 Detach . | . . . . . . Swap 15 | . 1 . 3 8 3 Drop 18 | . 1 . 4 13 . Fire 111 | . . 7 33 62 9 Melee 9 | . . . . 4 5 Ram . | . . . . . . Kick 1 | . . . . 1 . Crush 1 | . . . . 1 . Escape Stasis . | . . . . . . Rewire . | . . . . . . Trap . | . . . . . . Miscellaneous . | . . . . . . Route ------- -11/Scrapyard -10/Materials -10/Mines -9/Materials (discovered 2 exits: *Mat x2) -8/Materials -8/Storage History --------- Turn | Location | Event 13 | -11/Scrapyard | Discovered new exit (range 15) 64 | -11/Scrapyard | Entered Materials 252 | -10/Materials | Discovered new exit (range 16) 288 | -10/Materials | Entered Mines 311 | -10/Mines | Discovered new exit (range 8) 318 | -10/Mines | Build established: Mutant 532 | -10/Mines | Found the Drone Emporium 538 | -10/Mines | Found Prototype Device 804 | -10/Mines | Learned location of 1 exit from Materials 895 | -10/Mines | Entered Materials 895 | -9/Materials | Evolved 2 slots: Propulsion x2 896 | -9/Materials | Identified exit to Materials 1486 | -9/Materials | Discovered exit to Materials (range 15) 1536 | -9/Materials | Entered another Materials area 1536 | -8/Materials | Evolved 2 slots: Utility x2 1990 | -8/Materials | Build established: Scavenger-Mutant 2120 | -8/Materials | Identified Decoy Drone Bay 2125 | -8/Materials | Discovered new exit (range 20) 2150 | -8/Materials | Lost 5 parts (1p2u2w) 2187 | -8/Materials | Lost 6 allies 2377 | -8/Materials | Core integrity fell below 50% 2504 | -8/Materials | Core integrity fell below 20% 2539 | -8/Materials | Lost 3 parts (2n1u) 2613 | -8/Materials | Entered Storage 2719 | -8/Storage | Destroyed by Y-45 Defender with Beam Rifle Last Messages --------------- 02640_ W-25 Informer sends out distress signal. 02648_ Acquired Aluminum Leg. 02654_ K-01 Serf collects debris. 02660_ G-47 Trooper suffers critical hit (Burn). 02660_ Aluminum Leg melted. 02660_ G-47 Trooper destroyed. 02661_ Acquired 20 matter. 02661_ K-01 Serf collects debris. 02708_ Connecting with Repair Station... 02708_ Current location identified: Storage 02708_ Discarded Imp. Terrain Scan Processor. 02710_ Connecting with Repair Station... >>Scan(Imp. Carbon-fiber Leg) Scanning Imp. Carbon-fiber Leg... Ready to Repair: Imp. Carbon-fiber Leg Rating: 4 Time: 22 02711_ Component Storage disabled. 02714_ Imp. Deuterium Engine destroyed. Map ----- +----------------------------------------------------+ | ????# # #???????????????????????? | | ????# # #???????????????????????? | | ????# # """" #???????????????????????? | | ????# # """" #???????????????????????? | | ????# # """" #???????????????????????? | | ????# + """" #???????????????????????? | | ????# %# #???????????????????????? | | ????# %# """" #???????????????????????? | | ????# # """" #???????????????????????? | | ????# # """" #???????????????????????? | | ????# # """" #???????????????????????? | | ????# # #???????????????????????? | | ????# # !#???#+###?????? ????????? | | ????# #"######## ## ????????? | | ????# ?????????? | | ????# " ???????? | | ????# ???????? | | ????# #####/#### #####???????????? | | ????# ## Y #??####???????????????? | | ????# ## #?????????????????????? | | ????# ## "" #?????????????????????? | | ????# ## """ #?????????????????????? | | ????# ## """ ####??????????????????? | | ????# ## """ "" #??????????????????? | | ????###### """ """#??????????????????? | | ?????????# @ R"#??????????????????? | | ?????????# """#??????????????????? | | ?????????# ! ####??????????????????? | | ?????????# #?????????????????????? | | ?????????#########?????????????????????? | | ???????????????????????????????????????? | | ???????????????????????????????????????? | | ???????????????????????????????????????? | | ???????????????????????????????????????? | | ???????????????????????????????????????? | | ???????????????????????????????????????? | | | | | | | | | | | | | | | | | | | | | | | | | | | | | +----------------------------------------------------+ Best States ------------- Heat Dissipation 72 Energy Generation 16 Energy Capacity 290 Matter Stores 300 Matter Capacity 300 Sight Range 20 Terrain Scan Density 110 ECM Strength 1 Armor Coverage 150 Evasion (%) 55 Recoil Reduction 4 Offensive Hacking 10 Item Schematics ----------------- None Robot Schematics ------------------ None Fabricated ------------ Nothing Repaired ---------- Nothing Studied --------- None Alien Tech Used ----------------- None Achievements -------------- None Challenges ------------ None Game ------ Seed DefenseAssembledCompressor Manual? 0 Play Time 00:32:05 Cumulative 21.0 hours Start 2026.03.25 @ 20:57:27 End 2026.03.28 @ 21:28:17 Sessions 3 Manual Loads 0 Difficulty Rogue Special Mode None Game No. 28 Rogue 28 Adventurer 0 Explorer 0 Win Type - Total 0 Types 0/0/0/0/0/0/0/0/0/0 Lore% 12 Gallery% 19 Achievement% 15 Wizard Run 0 Options --------- Layout 1 ASCII 0 Keyboard 0 Movement Numpad Keybinds 0 Fullscreen 0 Font 28/SmallcapsGlow Map View 50x35 Zoom Use 0% Tactical HUD 1 Map Filters NONE Filters NONE Steam 1 RUN: 73514211-7cfd-47f9-9c96-da216696ba0d